fUSD/lending_fUSD_20240814
["ID","MTS","AMOUNT","RATE_DAILY","PERIOD"]
[334835263,1723606264582,-613.62,0.00014246,2]
[334835264,1723606264593,-500.0,0.00014246,2]
[334835265,1723606264603,-1116.49,0.00014246,2]
[334835266,1723606264613,-2001.85,0.00014246,2]
[334835267,1723606264623,-1590.84,0.00014246,2]
[334835268,1723606264633,-500.0,0.00014246,2]
[334835269,1723606264643,-910.1,0.00014246,2]
[334835270,1723606264652,-500.0,0.00014246,2]
[334835271,1723606264976,-500.0,0.00014246,2]
[334835272,1723606264992,-500.0,0.00014246,2]
[334835273,1723606265002,-500.0,0.00014246,2]
[334835274,1723606265013,-500.0,0.00014246,2]
[334835275,1723606265023,-500.0,0.00014246,2]
[334835276,1723606265035,-1610.3,0.00014246,2]
[334835277,1723606265045,-503.38740705,0.00014246,2]
[334835278,1723606265056,-875.89,0.00014246,2]
[334835279,1723606265066,-500.0,0.00014246,2]
[334835280,1723606265076,-500.0,0.00014246,2]
[334835281,1723606265086,-500.0,0.00014246,2]
[334835282,1723606265097,-500.0,0.00014246,2]
[334835283,1723606265113,-646.94,0.00014246,2]
[334835284,1723606265122,-805.15,0.00014246,2]
[334835285,1723606265133,-2687.23,0.00014246,2]
[334835286,1723606265143,-500.0,0.00014246,2]
[334835287,1723606265153,-500.0,0.00014246,2]
[334835288,1723606265163,-500.0,0.00014246,2]
[334835289,1723606265174,-1026.7,0.00014246,2]
[334835290,1723606265185,-500.0,0.00014246,2]
[334835291,1723606265196,-500.0,0.00014246,2]
[334835292,1723606265206,-2055.39,0.00014246,2]
[334835293,1723606265216,-2059.88,0.00014246,2]
[334835294,1723606265226,-500.0,0.00014246,2]
[334835295,1723606265236,-500.0,0.00014246,2]
[334835296,1723606265246,-500.0,0.00014246,2]
[334835297,1723606265257,-500.0,0.00014246,2]
[334835298,1723606265267,-1751.88,0.00014246,2]
[334835299,1723606265277,-500.0,0.00014246,2]
[334835300,1723606265287,-500.0,0.00014246,2]
[334835301,1723606265297,-545.63,0.00014246,2]
[334835302,1723606265306,-733.22,0.00014246,2]
[334835303,1723606265316,-500.0,0.00014246,2]
[334835304,1723606265325,-589.61,0.00014246,2]
[334835305,1723606265336,-500.0,0.00014246,2]
[334835306,1723606265349,-1476.63,0.00014246,2]
[334835307,1723606265359,-500.0,0.00014246,2]
[334835308,1723606265369,-500.0,0.00014246,2]
[334835309,1723606265379,-2316.7,0.00014246,2]
[334835310,1723606265390,-242.4840976,0.00014246,2]
[334835311,1723606265400,-500.0,0.00014246,2]
[334835312,1723606265409,-975.54,0.00014246,2]
[334835313,1723606265419,-1352.79,0.00014246,2]
[334835314,1723606265429,-500.0,0.00014246,2]
[334835315,1723606265439,-500.0,0.00014246,2]
[334835316,1723606265449,-571.85546286,0.00014246,2]
[334835317,1723606265459,-683.26,0.00014246,2]
[334835318,1723606265469,-500.0,0.00014246,2]
[334835319,1723606265479,-1857.42,0.00014246,2]
[334835320,1723606265488,-1064.71,0.00014246,2]
[334835321,1723606265498,-500.0,0.00014246,2]
[334835322,1723606265508,-500.0,0.00014246,2]
[334835323,1723606265519,-500.0,0.00014246,2]
[334835324,1723606265528,-2140.46,0.00014246,2]
[334835325,1723606265538,-500.0,0.00014246,2]
[334835326,1723606265548,-500.0,0.00014246,2]
[334835327,1723606265557,-2002.6,0.00014246,2]
[334835328,1723606265567,-500.0,0.00014246,2]
[334835329,1723606265577,-994.38,0.00014246,2]
[334835330,1723606265587,-1214.76,0.00014246,2]
[334835331,1723606265597,-502.03135686,0.00014246,2]
[334835332,1723606265607,-500.0,0.00014246,2]
[334835333,1723606265616,-687.99,0.00014246,2]
[334835334,1723606265627,-500.0,0.00014246,2]
[334835335,1723606265638,-875.38,0.00014246,2]
[334835336,1723606265648,-2256.94,0.00014246,2]
[334835337,1723606265658,-500.0,0.00014246,2]
[334835338,1723606265668,-500.0,0.00014246,2]
[334835339,1723606265678,-542.84,0.00014246,2]
[334835340,1723606265687,-1186.97,0.00014246,2]
[334835341,1723606265697,-500.0,0.00014246,2]
[334835342,1723606265707,-500.0,0.00014246,2]
[334835343,1723606265716,-500.0,0.00014246,2]
[334835344,1723606265726,-2396.58,0.00014246,2]
[334835345,1723606265735,-500.0,0.00014246,2]
[334835346,1723606265749,-500.0,0.00014246,2]
[334835347,1723606265759,-500.0,0.00014246,2]
[334835348,1723606265768,-500.0,0.00014246,2]
[334835349,1723606265778,-500.0,0.00014246,2]
[334835350,1723606265788,-500.0,0.00014246,2]
[334835351,1723606265797,-1901.88,0.00014246,2]
[334835352,1723606265807,-500.0,0.00014246,2]
[334835353,1723606265816,-926.19,0.00014246,2]
[334835354,1723606265827,-745.53,0.00014246,2]
[334835355,1723606265837,-614.08,0.00014246,2]
[334835356,1723606265848,-1384.68,0.00014246,2]
[334835357,1723606265858,-500.0,0.00014246,2]
[334835358,1723606265867,-500.0,0.00014246,2]
[334835359,1723606265876,-500.0,0.00014246,2]
[334835360,1723606265886,-500.0,0.00014246,2]
[334835361,1723606265896,-699.17,0.00014246,2]
[334835362,1723606265905,-610.28,0.00014246,2]
[334835363,1723606265915,-500.0,0.00014246,2]
[334835364,1723606265925,-500.0,0.00014246,2]
[334835365,1723606265934,-770.51,0.00014246,2]
[334835366,1723606265944,-500.0,0.00014246,2]
[334835367,1723606265954,-1153.37,0.00014246,2]
[334835368,1723606265963,-694.46,0.00014246,2]
[334835369,1723606265973,-1462.38,0.00014246,2]
[334835370,1723606265983,-500.0,0.00014246,2]
[334835371,1723606265993,-1122.17,0.00014246,2]
[334835372,1723606266004,-500.0,0.00014246,2]
[334835373,1723606266015,-1156.13,0.00014246,2]
[334835374,1723606266024,-500.0,0.00014246,2]
[334835375,1723606266034,-500.0,0.00014246,2]
[334835376,1723606266044,-500.0,0.00014246,2]
[334835377,1723606266053,-928.32,0.00014246,2]
[334835378,1723606266062,-500.0,0.00014246,2]
[334835379,1723606266071,-515.31,0.00014246,2]
[334835380,1723606266081,-1786.82,0.00014246,2]
[334835381,1723606266090,-500.0,0.00014246,2]
[334835382,1723606266101,-500.0,0.00014246,2]
[334835383,1723606266110,-1783.67,0.00014246,2]
[334835384,1723606266119,-500.0,0.00014246,2]
[334835385,1723606266129,-1322.93,0.00014246,2]
[334835386,1723606266138,-500.0,0.00014246,2]
[334835387,1723606266147,-5125.24,0.00014246,2]
[334835388,1723606266156,-924.38,0.00014246,2]
[334835389,1723606266166,-500.0,0.00014246,2]
[334835390,1723606266175,-539.32,0.00014246,2]
[334835391,1723606266184,-500.0,0.00014246,2]
[334835392,1723606266194,-2719.36,0.00014246,2]
[334835393,1723606266203,-1170.65,0.00014246,2]
[334835394,1723606266212,-770.29,0.00014246,2]
[334835395,1723606266222,-1497.14,0.00014246,2]
[334835396,1723606266232,-553.66,0.00014246,2]
[334835397,1723606266241,-16400.66,0.00014246,2]
[334835398,1723606266251,-564.36,0.00014246,2]
[334835399,1723606266260,-1305.03,0.00014246,2]
[334835400,1723606266269,-500.0,0.00014246,2]
[334835401,1723606266279,-500.0,0.00014246,2]
[334835402,1723606266290,-500.0,0.00014246,2]
[334835403,1723606266301,-5173.19,0.00014246,2]
[334835404,1723606266312,-500.0,0.00014246,2]
[334835405,1723606266322,-1004.75,0.00014246,2]
[334835406,1723606266332,-500.0,0.00014246,2]
[334835407,1723606266342,-1530.58,0.00014246,2]
[334835408,1723606266353,-500.0,0.00014246,2]
[334835409,1723606266362,-1256.42,0.00014246,2]
[334835410,1723606266371,-1870.61,0.00014246,2]
[334835411,1723606266381,-500.0,0.00014246,2]
[334835412,1723606266391,-12596.78,0.00014246,2]
[334835413,1723606266400,-842.61,0.00014246,2]
[334835414,1723606266409,-500.0,0.00014246,2]
[334835415,1723606266419,-6083.44,0.00014246,2]
[334835416,1723606266429,-500.0,0.00014246,2]
[334835417,1723606266441,-3359.26,0.00014246,2]
[334835418,1723606266451,-2906.96,0.00014246,2]
[334835419,1723606266462,-1592.04,0.00014246,2]
[334835420,1723606266471,-750.28,0.00014246,2]
[334835421,1723606266480,-500.0,0.00014246,2]
[334835422,1723606266490,-1862.96,0.00014246,2]
[334835423,1723606266499,-1588.9,0.00014246,2]
[334835424,1723606266509,-1891.12,0.00014246,2]
[334835425,1723606266518,-500.0,0.00014246,2]
[334835426,1723606266528,-11429.35,0.00014246,2]
[334835427,1723606266538,-500.0,0.00014246,2]
[334835428,1723606266547,-658.23,0.00014246,2]
[334835429,1723606266557,-2138.35,0.00014246,2]
[334835430,1723606266566,-2102.25,0.00014246,2]
[334835431,1723606266576,-1413.63,0.00014246,2]
[334835432,1723606266586,-500.0,0.00014246,2]
[334835433,1723606266595,-500.0,0.00014246,2]
[334835434,1723606266605,-500.0,0.00014246,2]
[334835435,1723606266615,-500.0,0.00014246,2]
[334835436,1723606266624,-636.18,0.00014246,2]
[334835437,1723606266634,-1399.72,0.00014246,2]
[334835438,1723606266643,-5737.21,0.00014246,2]
[334835439,1723606266653,-1253.23,0.00014246,2]
[334835440,1723606266662,-2124.1,0.00014246,2]
[334835441,1723606266671,-651.66,0.00014246,2]
[334835442,1723606266681,-2351.24,0.00014246,2]
[334835443,1723606266690,-817.32,0.00014246,2]
[334835444,1723606266700,-2185.53,0.00014246,2]
[334835445,1723606266709,-500.0,0.00014246,2]
[334835446,1723606266718,-1352.61,0.00014246,2]
[334835447,1723606266728,-500.0,0.00014246,2]
[334835448,1723606266737,-684.57,0.00014246,2]
[334835449,1723606266749,-778.49,0.00014246,2]
[334835450,1723606266758,-500.0,0.00014246,2]
[334835451,1723606266768,-27654.11,0.00014246,2]
[334835452,1723606266777,-500.0,0.00014246,2]
[334835453,1723606266787,-1814.01,0.00014246,2]
[334835454,1723606266797,-10314.84,0.00014246,2]
[334835455,1723606266807,-590.29,0.00014246,2]
[334835456,1723606266816,-500.0,0.00014246,2]
[334835457,1723606266826,-1693.11,0.00014246,2]
[334835458,1723606266835,-500.0,0.00014246,2]
[334835459,1723606266846,-1593.87,0.00014246,2]
[334835460,1723606266856,-549.48,0.00014246,2]
[334835461,1723606266865,-500.0,0.00014246,2]
[334835462,1723606266875,-14230.09,0.00014246,2]
[334835463,1723606266884,-500.0,0.00014246,2]
[334835464,1723606266893,-2050.16,0.00014246,2]
[334835465,1723606266902,-993.77,0.00014246,2]
[334835466,1723606266912,-500.0,0.00014246,2]
[334835467,1723606266921,-3696.5,0.00014246,2]
[334835468,1723606266931,-9937.73,0.00014246,2]
[334835469,1723606266940,-921.41,0.00014246,2]
[334835470,1723606266949,-500.0,0.00014246,2]
[334835471,1723606266958,-1659.6,0.00014246,2]
[334835472,1723606266967,-9757.03,0.00014246,2]
[334835473,1723606266977,-500.0,0.00014246,2]
[334835474,1723606266986,-1044.77,0.00014246,2]
[334835475,1723606266996,-1562.26,0.00014246,2]
[334835476,1723606267005,-1339.04,0.00014246,2]
[334835477,1723606267014,-500.0,0.00014246,2]
[334835478,1723606267023,-875.35,0.00014246,2]
[334835479,1723606267032,-9774.8,0.00014246,2]
[334835480,1723606267041,-3603.02,0.00014246,2]
[334835481,1723606267050,-500.0,0.00014246,2]
[334835482,1723606267059,-500.0,0.00014246,2]
[334835483,1723606267069,-1150.12,0.00014246,2]
[334835484,1723606267078,-1064.84,0.00014246,2]
[334835485,1723606267087,-29689.87,0.00014246,2]
[334835486,1723606267096,-1736.37,0.00014246,2]
[334835487,1723606267106,-500.0,0.00014246,2]
[334835488,1723606267115,-1500.0,0.00014246,2]
[334835489,1723606267124,-594.87,0.00014246,2]
[334835490,1723606267133,-500.0,0.00014246,2]
[334835491,1723606267143,-5930.72,0.00014246,2]
[334835492,1723606267152,-20601.04,0.00014246,2]
[334835493,1723606267161,-23067.66,0.00014246,2]
[334835494,1723606267170,-500.0,0.00014246,2]
[334835495,1723606267179,-826.8,0.00014246,2]
[334835496,1723606267188,-953.29,0.00014246,2]
[334835497,1723606267197,-500.0,0.00014246,2]
[334835498,1723606267206,-500.0,0.00014246,2]
[334835499,1723606267216,-500.0,0.00014246,2]
[334835500,1723606267225,-2419.57,0.00014246,2]
[334835501,1723606267234,-500.0,0.00014246,2]
[334835502,1723606267243,-1096.36,0.00014246,2]
[334835503,1723606267252,-223.74664291,0.00014246,2]
[334835504,1723606267262,-8563.51,0.00014246,2]
[334835505,1723606267271,-1397.06,0.00014246,2]
[334835506,1723606267280,-1627.93,0.00014246,2]
[334835507,1723606267289,-1164.95,0.00014246,2]
[334835508,1723606267298,-500.0,0.00014246,2]
[334835509,1723606267307,-500.0,0.00014246,2]
[334835510,1723606267317,-1702.34,0.00014246,2]
[334835511,1723606267326,-500.0,0.00014246,2]
[334835512,1723606267335,-2048.2,0.00014246,2]
[334835513,1723606267344,-851.9,0.00014246,2]
[334835514,1723606267446,-1238.06,0.00014246,2]
[334835515,1723606267455,-500.0,0.00014246,2]
[334835516,1723606267464,-16099.84,0.00014246,2]
[334835517,1723606267473,-628.86,0.00014246,2]
[334835518,1723606267484,-596.77,0.00014246,2]
[334835519,1723606267493,-2777.77,0.00014246,2]
[334835520,1723606267502,-1464.0,0.00014246,2]
[334835521,1723606267511,-1396.44,0.00014246,2]
[334835522,1723606267520,-357.27886977,0.00014246,2]
[334835523,1723606267530,-1764.6,0.00014246,2]
[334835524,1723606267539,-4171.0,0.00014246,2]
[334835525,1723606267548,-500.0,0.00014246,2]
[334835526,1723606267558,-748.05,0.00014246,2]
[334835527,1723606267568,-1367.2,0.00014246,2]
[334835528,1723606267577,-2379.71,0.00014246,2]
[334835529,1723606267586,-884.33,0.00014246,2]
[334835530,1723606267595,-1243.89,0.00014246,2]
[334835531,1723606267605,-6336.06,0.00014246,2]
[334835532,1723606267614,-500.0,0.00014246,2]
[334835533,1723606267624,-6816.03,0.00014246,2]
[334835534,1723606267633,-1308.01,0.00014246,2]
[334835535,1723606267642,-2181.16,0.00014246,2]
[334835536,1723606267653,-2759.13,0.00014246,2]
[334835537,1723606267665,-413.70105753,0.00014246,2]
[334835538,1723606267674,-1071.9,0.00014246,2]
[334835539,1723606267683,-1039.89,0.00014246,2]
[334835540,1723606267692,-1837.41,0.00014246,2]
[334835541,1723606267702,-1232.31,0.00014246,2]
[334835542,1723606267711,-2210.33,0.00014246,2]
[334835543,1723606267722,-530.06,0.00014246,2]
[334835544,1723606267731,-500.0,0.00014246,2]
[334835545,1723606267740,-1400.58,0.00014246,2]
[334835546,1723606267755,-9975.79,0.00014246,2]
[334835547,1723606267765,-1200.24,0.00014246,2]
[334835548,1723606267775,-2699.35,0.00014246,2]
[334835549,1723606267784,-518.22,0.00014246,2]
[334835550,1723606267794,-500.0,0.00014246,2]
[334835551,1723606267805,-8510.16,0.00014246,2]
[334835552,1723606267814,-562.88,0.00014246,2]
[334835553,1723606267824,-806.35,0.00014246,2]
[334835554,1723606267834,-1090.4,0.00014246,2]
[334835555,1723606267843,-1785.97,0.00014246,2]
[334835556,1723606267854,-772.04,0.00014246,2]
[334835557,1723606267863,-1077.86,0.00014246,2]
[334835558,1723606267872,-1376.89,0.00014246,2]
[334835559,1723606267881,-1432.27,0.00014246,2]
[334835560,1723606267890,-1419.53,0.00014246,2]
[334835561,1723606267899,-2309.29,0.00014246,2]
[334835562,1723606267909,-4717.91,0.00014246,2]
[334835563,1723606267921,-500.0,0.00014246,2]
[334835564,1723606267931,-3633.76,0.00014246,2]
[334835565,1723606267940,-1027.69,0.00014246,2]
[334835566,1723606267949,-828.94,0.00014246,2]
[334835567,1723606267958,-16630.67,0.00014246,2]
[334835568,1723606267967,-1472.8,0.00014246,2]
[334835569,1723606267976,-2336.71,0.00014246,2]
[334835570,1723606267985,-716.19,0.00014246,2]
[334835571,1723606267994,-1630.08,0.00014246,2]
[334835572,1723606268003,-1034.77,0.00014246,2]
[334835573,1723606268012,-1495.12,0.00014246,2]
[334835574,1723606268021,-500.0,0.00014246,2]
[334835575,1723606268030,-500.0,0.00014246,2]
[334835576,1723606268039,-1585.64,0.00014246,2]
[334835577,1723606268048,-500.0,0.00014246,2]
[334835578,1723606268057,-1477.26,0.00014246,2]
[334835579,1723606268067,-500.0,0.00014246,2]
[334835580,1723606268076,-1409.85,0.00014246,2]
[334835581,1723606268085,-4316.92,0.00014246,2]
[334835582,1723606268095,-1414.28,0.00014246,2]
[334835583,1723606268105,-808.06,0.00014246,2]
[334835584,1723606268114,-500.0,0.00014246,2]
[334835585,1723606268124,-3209.27,0.00014246,2]
[334835586,1723606268133,-500.0,0.00014246,2]
[334835587,1723606268142,-754.12,0.00014246,2]
[334835588,1723606268151,-1167.72,0.00014246,2]
[334835589,1723606268161,-500.0,0.00014246,2]
[334835590,1723606268170,-500.0,0.00014246,2]
[334835591,1723606268179,-3222.79,0.00014246,2]
[334835592,1723606268188,-6375.33,0.00014246,2]
[334835593,1723606268198,-3914.08,0.00014246,2]
[334835594,1723606268207,-500.0,0.00014246,2]
[334835595,1723606268217,-500.0,0.00014246,2]
[334835596,1723606268226,-500.0,0.00014246,2]
[334835597,1723606268236,-4368.17,0.00014246,2]
[334835598,1723606268245,-3464.28,0.00014246,2]
[334835599,1723606268255,-1316.98,0.00014246,2]
[334835600,1723606268264,-500.0,0.00014246,2]
[334835601,1723606268274,-3951.04,0.00014246,2]
[334835602,1723606268284,-500.0,0.00014246,2]
[334835603,1723606268294,-515.72,0.00014246,2]
[334835604,1723606268304,-1503.5,0.00014246,2]
[334835605,1723606268313,-500.0,0.00014246,2]
[334835606,1723606268323,-7597.75,0.00014246,2]
[334835607,1723606268332,-1180.15,0.00014246,2]
[334835608,1723606268342,-500.0,0.00014246,2]
[334835609,1723606268352,-500.0,0.00014246,2]
[334835610,1723606268361,-2371.76,0.00014246,2]
[334835611,1723606268370,-823.66,0.00014246,2]
[334835612,1723606268380,-2626.42,0.00014246,2]
[334835613,1723606268389,-2213.62,0.00014246,2]
[334835614,1723606268399,-9863.1,0.00014246,2]
[334835615,1723606268408,-3408.68,0.00014246,2]
[334835616,1723606268418,-13054.54,0.00014246,2]
[334835617,1723606268427,-1051.11,0.00014246,2]
[334835618,1723606268437,-2708.69,0.00014246,2]
[334835619,1723606268447,-500.0,0.00014246,2]
[334835620,1723606268456,-531.32,0.00014246,2]
[334835621,1723606268465,-2248.27,0.00014246,2]
[334835622,1723606268474,-500.0,0.00014246,2]
[334835623,1723606268483,-1699.77,0.00014246,2]
[334835624,1723606268492,-4651.28,0.00014246,2]
[334835625,1723606268501,-5188.03,0.00014246,2]
[334835626,1723606268511,-2317.6,0.00014246,2]
[334835627,1723606268520,-500.0,0.00014246,2]
[334835628,1723606268529,-931.26,0.00014246,2]
[334835629,1723606268538,-500.0,0.00014246,2]
[334835630,1723606268546,-3304.68,0.00014246,2]
[334835631,1723606268556,-500.0,0.00014246,2]
[334835632,1723606268565,-1265.11,0.00014246,2]
[334835633,1723606268574,-614.46,0.00014246,2]
[334835634,1723606268584,-500.0,0.00014246,2]
[334835635,1723606268593,-500.0,0.00014246,2]
[334835636,1723606268612,-2028.9,0.00014246,2]
[334835637,1723606268622,-3647.07,0.00014246,2]
[334835638,1723606268631,-500.0,0.00014246,2]
[334835639,1723606268640,-3715.29,0.00014246,2]
[334835640,1723606268649,-4675.48,0.00014246,2]
[334835641,1723606268659,-500.0,0.00014246,2]
[334835642,1723606268668,-493.47630058,0.00014246,2]
[334835643,1723606268677,-505.90066568,0.00014246,2]
[334835644,1723606268686,-3923.08,0.00014246,2]
[334835645,1723606268695,-500.0,0.00014246,2]
[334835646,1723606268705,-3224.78,0.00014246,2]
[334835647,1723606268714,-4295.2,0.00014246,2]
[334835648,1723606268723,-825.04,0.00014246,2]
[334835649,1723606268733,-1259.06,0.00014246,2]
[334835650,1723606268743,-500.0,0.00014246,2]
[334835651,1723606268755,-500.0,0.00014246,2]
[334835652,1723606268764,-1723.66,0.00014246,2]
[334835653,1723606268775,-500.0,0.00014246,2]
[334835654,1723606268784,-3159.18,0.00014246,2]
[334835655,1723606268794,-4205.68,0.00014246,2]
[334835656,1723606268803,-500.0,0.00014246,2]
[334835657,1723606268813,-500.0,0.00014246,2]
[334835658,1723606268823,-500.0,0.00014246,2]
[334835659,1723606268832,-2684.08,0.00014246,2]
[334835660,1723606268842,-12670.39,0.00014246,2]
[334835661,1723606268857,-1451.8,0.00014246,2]
[334835662,1723606268867,-500.0,0.00014246,2]
[334835663,1723606268876,-944.25,0.00014246,2]
[334835664,1723606268886,-5210.36,0.00014246,2]
[334835665,1723606268896,-181.86810677,0.00014246,2]
[334835666,1723606268905,-500.0,0.00014246,2]
[334835667,1723606268914,-500.0,0.00014246,2]
[334835668,1723606268923,-2653.26,0.00014246,2]
[334835669,1723606268932,-1486.96,0.00014246,2]
[334835670,1723606268942,-2658.12,0.00014246,2]
[334835671,1723606268952,-500.0,0.00014246,2]
[334835672,1723606268961,-1068.96,0.00014246,2]
[334835673,1723606268970,-1036.59,0.00014246,2]
[334835674,1723606268979,-536.54,0.00014246,2]
[334835675,1723606268988,-3034.55,0.00014246,2]
[334835676,1723606268997,-666.32,0.00014246,2]
[334835677,1723606269007,-3671.67,0.00014246,2]
[334835678,1723606269016,-3682.9,0.00014246,2]
[334835679,1723606269025,-1514.82,0.00014246,2]
[334835680,1723606269035,-500.0,0.00014246,2]
[334835681,1723606269044,-1352.59,0.00014246,2]
[334835682,1723606269053,-817.61,0.00014246,2]
[334835683,1723606269062,-3930.45,0.00014246,2]
[334835684,1723606269071,-500.0,0.00014246,2]
[334835685,1723606269080,-1099.67,0.00014246,2]
[334835686,1723606269090,-3001.63,0.00014246,2]
[334835687,1723606269100,-792.89,0.00014246,2]
[334835688,1723606269110,-1292.34,0.00014246,2]
[334835689,1723606269120,-1091.54,0.00014246,2]
[334835690,1723606269129,-4457.11,0.00014246,2]
[334835691,1723606269138,-500.0,0.00014246,2]
[334835692,1723606269147,-549.36,0.00014246,2]
[334835693,1723606269157,-896.44,0.00014246,2]
[334835694,1723606269167,-1018.26,0.00014246,2]
[334835695,1723606269177,-581.85,0.00014246,2]
[334835696,1723606269186,-500.0,0.00014246,2]
[334835697,1723606269196,-2569.68,0.00014246,2]
[334835698,1723606269205,-1376.93,0.00014246,2]
[334835699,1723606269215,-500.0,0.00014246,2]
[334835700,1723606269226,-571.51,0.00014246,2]
[334835701,1723606269235,-3140.85,0.00014246,2]
[334835702,1723606269244,-3734.95,0.00014246,2]
[334835703,1723606269254,-500.0,0.00014246,2]
[334835704,1723606269263,-3302.41,0.00014246,2]
[334835705,1723606269272,-500.0,0.00014246,2]
[334835706,1723606269282,-500.0,0.00014246,2]
[334835707,1723606269291,-670.67,0.00014246,2]
[334835708,1723606269300,-2638.69,0.00014246,2]
[334835709,1723606269309,-2369.05,0.00014246,2]
[334835710,1723606269318,-500.0,0.00014246,2]
[334835711,1723606269327,-500.0,0.00014246,2]
[334835712,1723606269336,-2001.83,0.00014246,2]
[334835713,1723606269345,-13946.1,0.00014246,2]
[334835714,1723606269356,-500.0,0.00014246,2]
[334835715,1723606269365,-2345.36,0.00014246,2]
[334835716,1723606269374,-567.9,0.00014246,2]
[334835717,1723606269384,-2422.96,0.00014246,2]
[334835718,1723606269393,-1927.98,0.00014246,2]
[334835719,1723606269403,-500.0,0.00014246,2]
[334835720,1723606269412,-7987.29,0.00014246,2]
[334835721,1723606269422,-500.0,0.00014246,2]
[334835722,1723606269431,-400.0,0.00014246,2]
[334835723,1723606269440,-901.36,0.00014246,2]
[334835724,1723606269449,-806.26,0.00014246,2]
[334835725,1723606269458,-1375.7,0.00014246,2]
[334835726,1723606269467,-572.16,0.00014246,2]
[334835727,1723606269477,-897.37,0.00014246,2]
[334835728,1723606269486,-500.0,0.00014246,2]
[334835729,1723606269495,-2356.28,0.00014246,2]
[334835730,1723606269504,-500.0,0.00014246,2]
[334835731,1723606269514,-4803.25,0.00014246,2]
[334835732,1723606269523,-923.75,0.00014246,2]
[334835733,1723606269533,-500.0,0.00014246,2]
[334835734,1723606269542,-663.0,0.00014246,2]
[334835735,1723606269551,-3366.69,0.00014246,2]
[334835736,1723606269560,-3831.66,0.00014246,2]
[334835737,1723606269569,-500.0,0.00014246,2]
[334835738,1723606269577,-8902.34,0.00014246,2]
[334835739,1723606269586,-683.18,0.00014246,2]
[334835740,1723606269595,-534.95,0.00014246,2]
[334835741,1723606269604,-500.0,0.00014246,2]
[334835742,1723606269613,-500.0,0.00014519,2]
[334835743,1723606269623,-500.0,0.00014519,2]
[334835744,1723606269632,-500.0,0.00014519,2]
[334835745,1723606269641,-710.12,0.00014519,2]
[334835746,1723606269651,-710.12,0.00014519,2]
[334835747,1723606269660,-710.12,0.00014519,2]
[334835748,1723606269670,-710.12,0.00014519,2]
[334835749,1723606269680,-500.0,0.0001452,2]
[334835750,1723606269689,-500.0,0.0001452,2]
[334835751,1723606269699,-1000.0,0.0001452,2]
[334835752,1723606269709,-500.0,0.0001452,2]
[334835753,1723606269719,-1095.06,0.0001452,2]
[334835754,1723606269729,-1320.5,0.0001452,2]
[334835755,1723606269738,-500.0,0.0001452,2]
[334835756,1723606269751,-1071.49,0.0001452,2]
[334835757,1723606269760,-500.0,0.0001452,2]
[334835758,1723606269769,-500.0,0.0001452,2]
[334835759,1723606269779,-500.0,0.0001452,2]
[334835760,1723606269788,-744.97,0.0001452,2]
[334835761,1723606269798,-557.90336626,0.0001452,2]
[334835762,1723606269807,-1591.04,0.0001452,2]